{"text_format":"3","workbook":"xlsx","n_sheets":2,"sheets":["list","data"],"read":"whole","date_system":"1900"}

{"sheet":"list","index":0,"n_rows":52,"n_cols":10,"rows_kept":52}
["№","Фамлия","Имя","Отчество","Класс","Класс участия","Балл","Макс. Балл","Статус","Учитель"]
[1,3,4,5,9,10,11,12,13,15]
[1,"Фатхулина","Камила","Ильназовна",6,6,36,36,"победитель","Валиева Ильсияр Хайдаровна"]
[2,"Фатыхов","Амир","Азатович",6,6,22,36,"участник","Валиева Ильсияр Хайдаровна"]
[3,"Хабибуллина","Эмилия","Рамилевна",6,6,18,36,"участник","Валиева Ильсияр Хайдаровна"]
[4,"Нурмиев","Амир","Азатович",7,7,40,40,"победитель","Валиева Ильсияр Хайдаровна"]
[5,"Габдулвалиев","Адель","Рамилевич",8,8,26,42,"участник","Валиева Ильсияр Хайдаровна"]
[6,"Гарифуллина","Мадина","Булатовна",8,8,42,42,"победитель","Валиева Ильсияр Хайдаровна"]
[7,"ЗалалтдиноваНаиля",null,"Ильясовна",8,8,31,42,"участник","Валиева Ильсияр Хайдаровна"]
[8,"Салихова","Зарина","Фидаилевна",8,8,30,42,"участник","Валиева Ильсияр Хайдаровна"]
[9,"Сафиуллина","Зарина","Фаанилевна",8,8,22,42,"участник","Валиева Ильсияр Хайдаровна"]
[10,"Ямалетдинова","Сабина","Салиховна",8,8,18,42,"участник","Валиева Ильсияр Хайдаровна"]
[11,"Кораблев","Артур","Александрович",9,9,15,46,"участник","Валиева Ильсияр Хайдаровна"]
[12,"Зайнуллин","Идрис","Табрисович",9,9,16,46,"участник","Валиева Ильсияр Хайдаровна"]
[13,"Габделбаров ","Феликс","Азатович",5,5,18,32,"участник","Гайнутдинова Нурфия Мансуровна"]
[14,"Гаффарова","Дина","Ильгамовна",8,8,40,42,"призер","Юсупова Гульгена Радисовна"]
[15,"Давлетшина","Раиля","Ильдусовна",8,8,40,42,"призер","Юсупова Гульгена Радисовна"]
[16,"Валиуллов ","Азамат","Альбертович",5,5,32,32,"победитель","Ибрагимова Нурания Мансуровна"]
[17,"Сафиуллин ","Рафис","Алмазович",5,5,30,32,"призер",{"$f":"$J$18","v":"Ибрагимова Нурания Мансуровна"}]
[18,"Сайфутдинова","Эльмира","Рафаэльевна",5,5,31,32,"призер","Валиуллова Лилия Хамбаловна"]
[19,"Мусин","Карим","Ленарович",5,5,28,32,"призер","Ибрагимова Нурания Мансуровна"]
[20,"Гильмутдинов","Сулейман ","Даниярович",4,4,30,32,"призер","Ибрагимова Нурания Мансуровна"]
[21,"Камалдинова","Диляра ","Ильнуровна",4,4,28,32,"участник","Ибрагимова Нурания Мансуровна"]
[22,"Салихова ","Инзиля","Ильнаровна",4,4,25,32,"участник","Ибрагимова Нурания Мансуровна"]
[23,"Сафиуллин ","Ихсан","Ильшатович",4,4,25,32,"участник","Ибрагимова Нурания Мансуровна"]
[24,"Хайруллина ","Мадина","Алмазовна",4,4,20,32,"участник","Ибрагимова Нурания Мансуровна"]
[25,"Шаехова","Амина","Ильфатовна",4,4,20,32,"участник","Ибрагимова Нурания Мансуровна"]
[26,"Галиева","Айсель","Динаровна",4,4,20,32,"участник","Ибрагимова Нурания Мансуровна"]
[27,"Шамсутдинова ","Самира","Маратовна",7,7,40,40,"победитель","Ибрагимова Нурания Мансуровна"]
[28,"Ахметова","Самира","Расиховна",7,7,39,40,"призер","Ибрагимова Нурания Мансуровна"]
[29,"Валиулова","Амина","Ильдаровна",7,7,39,40,"призер","Ибрагимова Нурания Мансуровна"]
[30,"Шакирова","Надира","Ильнаровна",7,7,38,40,"призер","Ибрагимова Нурания Мансуровна"]
[31,"Фаттахова","Алия","Наилевна",7,7,32,40,"участник","Ибрагимова Нурания Мансуровна"]
[32,"Хусаинов ","Рустам","Рахимзянович",7,7,34,40,"участник","Ибрагимова Нурания Мансуровна"]
[33,"Шакирзянова","Амаль ","Салаватовна",7,7,34,40,"участник","Ибрагимова Нурания Мансуровна"]
[34,"Баязитова","Назиля","Ильнуровна",7,7,32,40,"участник","Ибрагимова Нурания Мансуровна"]
[35,"Галимова","Самира","Сайдашевна",7,7,30,40,"участник","Ибрагимова Нурания Мансуровна"]
[36,"Хасанова ","Ралина","Маратовна",7,7,30,40,"участник","Ибрагимова Нурания Мансуровна"]
[37,"Садриев","Рушан","Рамилевич",7,7,28,40,"участник","Ибрагимова Нурания Мансуровна"]
[38,"Сунгатуллина","Ралина","Рамилевна",7,7,27,40,"участник","Ибрагимова Нурания Мансуровна"]
[39,"Сабирзянова","Камиля","Маратовна",7,7,26,40,"участник","Ибрагимова Нурания Мансуровна"]
[40,"Хайрутдинова","Диляра ","Наилевна",7,7,26,40,"участник",{"$f":"$J$12","v":"Валиева Ильсияр Хайдаровна"}]
[41,"Нурмиева ","Зиля","Азатовна",9,9,45,46,"призер","Валиуллова Лилия Хамбаловна"]
[42,"ФайзутдиноваЗиля",null,"Ирековна",9,9,45,46,"призер","Валиуллова Лилия Хамбаловна"]
[43,"СабирзяноваАйзиля",null,"Марсовна",9,9,46,46,"победитель","Валиуллова Лилия Хамбаловна"]
[44,"Рахимова","Азалия","Радисовна",8,8,28,42,"участник","Идиятуллина Айсылу Ринатовна"]
[45,"МузаффароваЯзиля",null,"Рамилевна",10,10,52,52,"победитель","Хафизова Гюзель Рахимзяновна"]
[46,"Мусина","Зайнап","Инсафовна",10,10,48,52,"призер","Хафизова Гюзель Рахимзяновна"]
[47,"Хафизова","Сюмбель","Фаридовна",10,10,48,52,"призер","Хафизова Гюзель Рахимзяновна"]
[48,"Нуризянова","Зиля","Ринатовна",10,10,31,52,"участник","Хафизова Гюзель Рахимзяновна"]
[49,"Хайбуллова","Лейла","Радиковна",10,10,24,52,"участник","Хафизова Гюзель Рахимзяновна"]
[50,"Закирова ","Аселя","Илгизовна",11,11,46,46,"победитель","Валиуллова Лилия Хамбаловна"]

{"sheet":"data","index":1,"n_rows":25,"n_cols":3,"rows_kept":25,"hidden":true}
[]
["Техника, технология и техническое творчество .  Ручная обработка древесины"]
["Техника, технология и техническое творчество .  Ручная обработка металла"]
["Техника, технология и техническое творчество .  Механическая обработка древесины"]
["Техника, технология и техническое творчество .  Механическая обработка металла"]
["Техника, технология и техническое творчество .  Электротехника"]
["Техника, технология и техническое творчество .  Робототехника"]
["Техника, технология и техническое творчество .  3d - моделирование и печать"]
["Техника, технология и техническое творчество .  Обработка материалов на лазерно-гравировальной машине"]
["Техника, технология и техническое творчество .  Промышленный дизайн"]
["Культура дома, дизайн и технологии .  Обработка швейного изделия или узла + моделирование швейных изделий"]
["Культура дома, дизайн и технологии .  Обработка швейного изделия или узла + моделирование швейных изделий с использованием графических редакторов"]
["Культура дома, дизайн и технологии .  Обработка швейного изделия или узла на швейно-вышивальном оборудовании + моделирование швейных изделий"]
["Культура дома, дизайн и технологии .  Обработка швейного изделия или узла на швейно-вышивальном оборудовании + моделирование швейных изделий с использованием графических редакторов"]
["Культура дома, дизайн и технологии .  Робототехника"]
["Культура дома, дизайн и технологии .  3d - моделирование и печать"]
["Культура дома, дизайн и технологии .  Обработка материалов на лазерно-гравировальной машине"]
["Культура дома, дизайн и технологии .  Промышленный дизайн"]
["Роботехника .  "]
["Информационная безопасность ."]
[]
[]
["участник"]
["призер",null,"да"]
["победитель"]